fUST/lending_fUST_20250611
["ID","MTS","AMOUNT","RATE_DAILY","PERIOD"]
[365282222,1749576639909,-561.89,0.00021095,4]
[365282223,1749576639918,-360.0,0.00021095,4]
[365282224,1749576639927,-460.0,0.00021095,4]
[365282225,1749576639936,-430.0,0.00021095,4]
[365282226,1749576639946,-560.99225664,0.00021095,4]
[365282227,1749576639955,-154.1,0.00021134,7]
[365282228,1749576639966,-805.04168362,0.00021269,2]
[365282229,1749576639976,-750.64,0.00021338,2]
[365282230,1749576639985,-154.1,0.0002134,7]
[365282231,1749576639994,-552.65960666,0.00021369,4]
[365282232,1749576640004,-208.76860842,0.00021369,4]
[365282233,1749576640014,-460.0,0.00021369,4]
[365282234,1749576640023,-522.5902681,0.00021369,4]
[365282235,1749576640032,-310.0,0.00021369,4]
[365282236,1749576640042,-400.0,0.00021369,4]
[365282237,1749576640051,-479.1488254,0.00021369,4]
[365282239,1749576640061,-460.0,0.00021369,4]
[365282240,1749576640070,-258.36793314,0.00021369,4]
[365282241,1749576640079,-460.0,0.00021369,4]
[365282242,1749576640088,-531.23865273,0.00021369,4]
[365282243,1749576640097,-430.0,0.00021369,4]
[365282244,1749576640107,-420.0,0.00021369,4]
[365282245,1749576640116,-460.0,0.00021369,4]
[365282246,1749576640125,-460.0,0.00021369,4]
[365282247,1749576640135,-4165.77,0.00021369,4]
[365282248,1749576640144,-400.0,0.00021369,4]
[365282249,1749576640153,-460.0,0.00021369,4]
[365282250,1749576640163,-460.0,0.00021369,4]
[365282251,1749576640172,-460.0,0.00021369,4]
[365282252,1749576640181,-460.0,0.00021369,4]
[365282253,1749576640190,-460.0,0.00021369,4]
[365282254,1749576640200,-410.0,0.00021369,4]
[365282255,1749576640211,-440.0,0.00021369,4]
[365282256,1749576640220,-460.0,0.00021369,4]
[365282257,1749576640229,-460.0,0.00021369,4]
[365282258,1749576640238,-460.0,0.00021369,4]
[365282259,1749576640248,-460.0,0.00021369,4]
[365282260,1749576640257,-420.0,0.00021369,4]
[365282261,1749576640266,-612.67,0.00021369,4]
[365282262,1749576640275,-460.0,0.00021369,4]
[365282263,1749576640285,-460.0,0.00021369,4]
[365282264,1749576640295,-553.74,0.00021369,4]
[365282265,1749576640304,-460.0,0.00021369,4]
[365282266,1749576640314,-813.24,0.00021369,4]
[365282267,1749576640323,-460.0,0.00021369,4]
[365282268,1749576640333,-460.0,0.00021369,4]
[365282269,1749576640342,-537.48,0.00021369,4]
[365282270,1749576640351,-489.35,0.00021369,4]
[365282271,1749576640361,-460.0,0.00021369,4]
[365282272,1749576640370,-460.0,0.00021369,4]
[365282273,1749576640389,-360.0,0.00021369,4]
[365282274,1749576640400,-460.0,0.00021369,2]
[365282275,1749576640411,-420.0,0.00021369,4]
[365282276,1749576640421,-1143.94,0.00021369,4]
[365282277,1749576640432,-460.0,0.00021369,4]
[365282278,1749576640442,-460.0,0.00021369,4]
[365282279,1749576640451,-460.0,0.00021369,4]
[365282280,1749576640462,-460.0,0.00021369,4]
[365282281,1749576640472,-400.0,0.00021369,4]
[365282282,1749576640485,-779.83,0.00021369,4]
[365282283,1749576640494,-460.0,0.00021369,4]
[365282284,1749576640504,-460.0,0.00021369,4]
[365282285,1749576640515,-930.03,0.00021369,4]
[365282286,1749576640525,-1052.79,0.00021369,4]
[365282287,1749576640534,-460.0,0.00021369,4]
[365282289,1749576640544,-820.68,0.00021369,4]
[365282291,1749576640554,-400.0,0.00021369,4]
[365282293,1749576640564,-330.0,0.00021369,4]
[365282295,1749576640573,-460.0,0.00021369,4]
[365282296,1749576640583,-460.0,0.00021369,4]
[365282297,1749576640593,-692.45,0.00021369,4]
[365282299,1749576640603,-207.65980576,0.00021369,4]
[365282301,1749576640613,-807.39,0.00021369,4]
[365282303,1749576640623,-350.0,0.00021369,4]
[365282305,1749576640633,-1087.75,0.00021369,4]
[365282307,1749576640642,-561.89,0.00021369,4]
[365282309,1749576640652,-460.0,0.00021369,4]
[365282311,1749576640661,-876.58125349,0.0002145,2]
[365282313,1749576640671,-154.1,0.00021547,7]
[365282315,1749576640680,-260.0,0.00021643,4]
[365282317,1749576640690,-460.0,0.00021643,4]
[365282319,1749576640699,-460.0,0.00021643,4]
[365282321,1749576640708,-410.0,0.00021643,4]
[365282323,1749576640718,-486.89014251,0.00021643,4]
[365282325,1749576640727,-4165.77,0.00021643,4]
[365282327,1749576640736,-460.0,0.00021643,4]
[365282329,1749576640746,-460.0,0.00021643,4]
[365282331,1749576640755,-460.0,0.00021643,4]
[365282333,1749576640764,-310.0,0.00021643,4]
[365282335,1749576640773,-390.0,0.00021643,4]
[365282337,1749576640782,-460.0,0.00021643,4]
[365282339,1749576640791,-460.0,0.00021643,4]
[365282341,1749576640800,-390.0,0.00021643,4]
[365282343,1749576640810,-460.0,0.00021643,4]
[365282345,1749576640819,-612.67,0.00021643,4]
[365282347,1749576640828,-228.26,0.00021643,4]
[365282349,1749576640838,-460.0,0.00021643,4]
[365282351,1749576640847,-553.74,0.00021643,4]
[365282353,1749576640857,-265.97687301,0.00021643,4]
[365282355,1749576640867,-813.24,0.00021643,4]
[365282357,1749576640876,-460.0,0.00021643,4]
[365282359,1749576640885,-420.0,0.00021643,4]
[365282361,1749576640895,-537.48,0.00021643,4]
[365282363,1749576640904,-489.35,0.00021643,4]
[365282365,1749576640913,-460.0,0.00021643,4]
[365282367,1749576640923,-460.0,0.00021643,4]
[365282369,1749576640933,-460.0,0.00021643,2]
[365282371,1749576640943,-1143.94,0.00021643,4]
[365282373,1749576640952,-420.0,0.00021643,4]
[365282375,1749576640963,-460.0,0.00021643,4]
[365282377,1749576640972,-460.0,0.00021643,4]
[365282379,1749576640981,-460.0,0.00021643,4]
[365282381,1749576640990,-779.83,0.00021643,4]
[365282383,1749576640999,-460.0,0.00021643,4]
[365282385,1749576641009,-460.0,0.00021643,4]
[365282387,1749576641018,-930.03,0.00021643,4]
[365282389,1749576641027,-1052.79,0.00021643,4]
[365282391,1749576641037,-460.0,0.00021643,4]
[365282393,1749576641046,-820.68,0.00021643,4]
[365282395,1749576641055,-515.89,0.00021643,4]
[365282397,1749576641065,-503.90615271,0.00021643,4]
[365282399,1749576641079,-692.45,0.00021643,4]
[365282401,1749576641089,-807.39,0.00021643,4]
[365282403,1749576641099,-1087.75,0.00021643,4]
[365282405,1749576641108,-561.89,0.00021643,4]
[365282407,1749576641118,-460.0,0.00021643,4]
[365282409,1749576641127,-154.1,0.00021753,7]
[365282412,1749576641137,-420.0,0.00021825,2]
[365282413,1749576641147,-205.87488553,0.000219,6]
[365282415,1749576641156,-460.0,0.00021917,4]
[365282417,1749576641166,-390.0,0.00021917,4]
[365282420,1749576641175,-4165.77,0.00021917,4]
[365282421,1749576641184,-380.0,0.00021917,4]
[365282423,1749576641194,-599.31,0.00021917,4]
[365282426,1749576641203,-390.0,0.00021917,4]
[365282428,1749576641214,-460.0,0.00021917,4]
[365282429,1749576641224,-460.0,0.00021917,4]
[365282432,1749576641234,-460.0,0.00021917,4]
[365282434,1749576641243,-612.67,0.00021917,4]
[365282436,1749576641258,-460.0,0.00021917,4]
[365282438,1749576641267,-553.74,0.00021917,4]
[365282440,1749576641277,-813.24,0.00021917,4]
[365282442,1749576641286,-460.0,0.00021917,4]
[365282444,1749576641295,-537.48,0.00021917,4]
[365282446,1749576641305,-489.35,0.00021917,4]
[365282448,1749576641315,-460.0,0.00021917,4]
[365282450,1749576641325,-340.0,0.00021917,4]
[365282452,1749576641334,-263.8017678,0.00021917,2]
[365282454,1749576641343,-1143.94,0.00021917,4]
[365282456,1749576641353,-460.0,0.00021917,4]
[365282458,1749576641362,-547.81849771,0.00021917,4]
[365282460,1749576641371,-460.0,0.00021917,4]
[365282462,1749576641384,-779.83,0.00021917,4]
[365282464,1749576641393,-460.0,0.00021917,4]
[365282466,1749576641402,-460.0,0.00021917,4]
[365282468,1749576641412,-930.03,0.00021917,4]
[365282470,1749576641422,-1052.79,0.00021917,4]
[365282473,1749576641432,-460.0,0.00021917,4]
[365282475,1749576641443,-820.68,0.00021917,4]
[365282477,1749576641452,-692.45,0.00021917,4]
[365282478,1749576641462,-807.39,0.00021917,4]
[365282480,1749576641472,-1087.75,0.00021917,4]
[365282482,1749576641484,-561.89,0.00021917,4]
[365282484,1749576641493,-460.0,0.00021917,4]
[365282486,1749576641503,-154.1,0.0002196,7]
[365282488,1749576641514,-70763.27,0.00022,7]
[365282490,1749576641523,-213.1263252,0.00022,7]
[365282493,1749576641532,-876.58125349,0.00022002,2]
[365282495,1749576641542,-205.8748853,0.00022007,6]
[365282497,1749576641551,-205.8748853,0.00022114,6]
[365282499,1749576641562,-805.04168361,0.00022141,2]
[365282501,1749576641572,-154.1,0.00022166,7]
[365282503,1749576641581,-215.08,0.00022191,4]
[365282505,1749576641592,-4165.77,0.00022191,4]
[365282507,1749576641601,-460.0,0.00022191,4]
[365282509,1749576641610,-460.0,0.00022191,4]
[365282511,1749576641619,-460.0,0.00022191,4]
[365282513,1749576641628,-612.67,0.00022191,4]
[365282515,1749576641638,-460.0,0.00022191,4]
[365282517,1749576641647,-553.74,0.00022191,4]
[365282519,1749576641656,-813.24,0.00022191,4]
[365282521,1749576641665,-320.0,0.00022191,4]
[365282523,1749576641675,-537.48,0.00022191,4]
[365282525,1749576641685,-489.35,0.00022191,4]
[365282527,1749576641695,-460.0,0.00022191,4]
[365282529,1749576641704,-1143.94,0.00022191,4]
[365282531,1749576641714,-460.0,0.00022191,4]
[365282533,1749576641724,-460.0,0.00022191,4]
[365282535,1749576641733,-779.83,0.00022191,4]
[365282537,1749576641743,-460.0,0.00022191,4]
[365282539,1749576641752,-460.0,0.00022191,4]
[365282541,1749576641761,-930.03,0.00022191,4]
[365282543,1749576641771,-1052.79,0.00022191,4]
[365282545,1749576641782,-460.0,0.00022191,4]
[365282547,1749576641791,-820.68,0.00022191,4]
[365282549,1749576641800,-692.45,0.00022191,4]
[365282551,1749576641810,-807.39,0.00022191,4]
[365282553,1749576641819,-1087.75,0.00022191,4]
[365282555,1749576641828,-561.89,0.00022191,4]
[365282557,1749576641838,-460.0,0.00022191,4]
[365282559,1749576641847,-597.83,0.000222,7]
[365282560,1749576641856,-179.69471741,0.000222,69]
[365282562,1749576641866,-205.8748853,0.00022221,6]
[365282564,1749576641875,-205.8748853,0.00022329,7]
[365282566,1749576641884,-154.1,0.00022372,7]
[365282568,1749576641893,-205.8748853,0.00022436,7]
[365282570,1749576641903,-4165.77,0.00022465,4]
[365282572,1749576641913,-460.0,0.00022465,4]
[365282574,1749576641922,-460.0,0.00022465,4]
[365282576,1749576641931,-460.0,0.00022465,4]
[365282578,1749576641940,-612.67,0.00022465,4]
[365282580,1749576641949,-460.0,0.00022465,4]
[365282582,1749576641960,-553.74,0.00022465,4]
[365282584,1749576641969,-813.24,0.00022465,4]
[365282586,1749576641979,-537.48,0.00022465,4]
[365282588,1749576641988,-489.35,0.00022465,4]
[365282590,1749576641998,-460.0,0.00022465,4]
[365282592,1749576642009,-1143.94,0.00022465,4]
[365282594,1749576642019,-460.0,0.00022465,4]
[365282596,1749576642028,-460.0,0.00022465,4]
[365282598,1749576642038,-779.83,0.00022465,4]
[365282600,1749576642050,-460.0,0.00022465,4]
[365282603,1749576642060,-460.0,0.00022465,4]
[365282605,1749576642069,-930.03,0.00022465,4]
[365282606,1749576642079,-1052.79,0.00022465,4]
[365282609,1749576642088,-300.0,0.00022465,4]
[365282611,1749576642098,-820.68,0.00022465,4]
[365282612,1749576642107,-692.45,0.00022465,4]
[365282615,1749576642117,-807.39,0.00022465,4]
[365282616,1749576642126,-1087.75,0.00022465,4]
[365282618,1749576642136,-561.89,0.00022465,4]
[365282620,1749576642146,-460.0,0.00022465,4]
[365282622,1749576642155,-205.8748853,0.00022543,7]
[365282624,1749576642165,-876.58125349,0.00022553,2]
[365282626,1749576642175,-834.9046531,0.0002262,2]
[365282628,1749576642184,-160.0,0.00022624,2]
[365282630,1749576642193,-160.0,0.00022624,2]
[365282632,1749576642203,-160.0,0.00022624,2]
[365282635,1749576642213,-205.8748853,0.0002265,7]
[365282637,1749576642222,-160.0,0.00022738,2]
[365282639,1749576642232,-4165.77,0.00022739,4]
[365282640,1749576642241,-460.0,0.00022739,4]
[365282642,1749576642250,-460.0,0.00022739,4]
[365282644,1749576642260,-460.0,0.00022739,4]
[365282646,1749576642270,-612.67,0.00022739,4]
[365282648,1749576642280,-460.0,0.00022739,4]
[365282650,1749576642289,-553.74,0.00022739,4]
[365282652,1749576642303,-813.24,0.00022739,4]
[365282654,1749576642317,-537.48,0.00022739,4]
[365282656,1749576642327,-489.35,0.00022739,4]
[365282659,1749576642338,-460.0,0.00022739,4]
[365282661,1749576642347,-1143.94,0.00022739,4]
[365282663,1749576642357,-460.0,0.00022739,4]
[365282665,1749576642366,-460.0,0.00022739,4]
[365282667,1749576642376,-779.83,0.00022739,4]
[365282669,1749576642386,-460.0,0.00022739,4]
[365282671,1749576642395,-234.36793446,0.00022739,4]
[365282673,1749576642405,-930.03,0.00022739,4]
[365282675,1749576642414,-1052.79,0.00022739,4]
[365282677,1749576642423,-820.68,0.00022739,4]
[365282679,1749576642434,-692.45,0.00022739,4]
[365282681,1749576642443,-807.39,0.00022739,4]
[365282683,1749576642453,-1087.75,0.00022739,4]
[365282685,1749576642463,-561.89,0.00022739,4]
[365282687,1749576642475,-460.0,0.00022739,4]
[365282689,1749576642485,-205.8748853,0.00022757,7]
[365282691,1749576642495,-205.8748853,0.00022864,8]
[365282693,1749576642504,-13365.8350906,0.0002295,7]
[365282695,1749576642514,-13365.8350906,0.0002295,7]
[365282697,1749576642532,-205.8748853,0.00022971,8]
[365282699,1749576642542,-424.12530924,0.00022997,2]
[365282701,1749576642554,-229.6792923,0.00022997,2]
[365282703,1749576642563,-160.0,0.00022997,2]
[365282705,1749576642573,-213.1263252,0.00022997,2]
[365282707,1749576642582,-160.0,0.00022997,2]
[365282709,1749576642591,-574.773305,0.00023,2]
[365282711,1749576642601,-16554.57218705,0.00023,20]
[365282713,1749576642610,-3026.35047221,0.00023,2]
[365282715,1749576642619,-4165.77,0.00023013,4]
[365282717,1749576642629,-460.0,0.00023013,4]
[365282719,1749576642639,-460.0,0.00023013,4]
[365282721,1749576642648,-460.0,0.00023013,4]
[365282723,1749576642658,-612.67,0.00023013,4]
[365282725,1749576642667,-460.0,0.00023013,4]
[365282727,1749576642677,-553.74,0.00023013,4]
[365282729,1749576642686,-813.24,0.00023013,4]
[365282731,1749576642695,-537.48,0.00023013,4]
[365282734,1749576642705,-489.35,0.00023013,4]
[365282736,1749576642715,-460.0,0.00023013,4]
[365282738,1749576642724,-1143.94,0.00023013,4]
[365282740,1749576642733,-460.0,0.00023013,4]
[365282742,1749576642742,-460.0,0.00023013,4]
[365282744,1749576642752,-779.83,0.00023013,4]
[365282746,1749576642761,-460.0,0.00023013,4]
[365282760,1749576642887,-930.03,0.00023013,4]
[365282762,1749576642899,-1052.79,0.00023013,4]
[365282764,1749576642909,-820.68,0.00023013,4]
[365282767,1749576642919,-692.45,0.00023013,4]
[365282769,1749576642928,-807.39,0.00023013,4]
[365282771,1749576642939,-1087.75,0.00023013,4]
[365282773,1749576642948,-561.89,0.00023013,4]
[365282775,1749576642960,-460.0,0.00023013,4]
[365282777,1749576642970,-805.04168361,0.00023014,2]
[365282779,1749576642979,-205.8748853,0.00023079,8]
[365282782,1749576642989,-876.58125349,0.00023105,2]
[365282784,1749576642999,-205.8748853,0.00023186,8]
[365282787,1749576643008,-500.0,0.00023214,2]
[365282788,1749576643017,-1501.27,0.00023278,2]
[365282790,1749576643027,-4165.77,0.00023287,4]
[365282791,1749576643036,-460.0,0.00023287,4]
[365282792,1749576643046,-460.0,0.00023287,4]
[365282793,1749576643055,-460.0,0.00023287,4]
[365282794,1749576643065,-612.67,0.00023287,4]
[365282796,1749576643075,-460.0,0.00023287,4]
[365282798,1749576643085,-553.74,0.00023287,4]
[365282800,1749576643095,-813.24,0.00023287,4]
[365282802,1749576643105,-537.48,0.00023287,4]
[365282804,1749576643115,-489.35,0.00023287,4]
[365282806,1749576643126,-460.0,0.00023287,4]
[365282808,1749576643135,-1143.94,0.00023287,4]
[365282810,1749576643145,-460.0,0.00023287,4]
[365282813,1749576643156,-460.0,0.00023287,4]
[365282815,1749576643166,-779.83,0.00023287,4]
[365282817,1749576643176,-460.0,0.00023287,4]
[365282819,1749576643186,-930.03,0.00023287,4]
[365282821,1749576643195,-1052.79,0.00023287,4]
[365282822,1749576643205,-820.68,0.00023287,4]
[365282823,1749576643216,-692.45,0.00023287,4]
[365282825,1749576643225,-807.39,0.00023287,4]
[365282828,1749576643235,-1087.75,0.00023287,4]
[365282831,1749576643244,-561.89,0.00023287,4]
[365282833,1749576643254,-460.0,0.00023287,4]
[365282835,1749576643263,-205.8748853,0.00023293,8]
[365282837,1749576643272,-205.8748853,0.000234,9]
[365282839,1749576643281,-151.0,0.00023424,4]
[365282841,1749576643291,-500.0,0.00023424,4]
[365282842,1749576643300,-151.0,0.00023424,4]
[365282845,1749576643310,-500.0,0.00023424,4]
[365282846,1749576643319,-281.16332978,0.00023424,4]
[365282849,1749576643329,-500.0,0.00023424,4]
[365282851,1749576643338,-500.0,0.00023424,4]
[365282852,1749576643348,-500.0,0.00023424,4]
[365282855,1749576643358,-500.0,0.00023424,4]
[365282856,1749576643367,-500.0,0.00023424,4]
[365282859,1749576643377,-151.0,0.00023451,4]
[365282861,1749576643387,-500.83773021,0.00023451,4]
[365282863,1749576643395,-151.0,0.00023451,4]
[365282865,1749576643405,-500.0,0.00023451,4]
[365282867,1749576643414,-500.0,0.00023451,4]
[365282869,1749576643423,-500.0,0.00023451,4]
[365282871,1749576643433,-500.0,0.00023451,4]
[365282873,1749576643442,-500.0,0.00023451,4]
[365282875,1749576643451,-5000.0,0.00023465,2]
[365282877,1749576643461,-207.4,0.00023465,2]
[365282879,1749576643470,-151.0,0.00023479,4]
[365282881,1749576643481,-198.0,0.00023479,4]
[365282883,1749576643491,-500.0,0.00023479,4]
[365282885,1749576643500,-500.0,0.00023479,4]
[365282887,1749576643509,-500.0,0.00023479,4]
[365282889,1749576643519,-500.0,0.00023479,4]
[365282891,1749576643531,-205.8748853,0.00023507,9]
[365282893,1749576643540,-4165.77,0.00023561,4]
[365282895,1749576643550,-460.0,0.00023561,4]
[365282897,1749576643560,-460.0,0.00023561,4]
[365282899,1749576643569,-460.0,0.00023561,4]
[365282901,1749576643579,-612.67,0.00023561,4]
[365282903,1749576643588,-460.0,0.00023561,4]
[365282905,1749576643598,-553.74,0.00023561,4]
[365282907,1749576643607,-813.24,0.00023561,4]
[365282909,1749576643617,-537.48,0.00023561,4]
[365282911,1749576643626,-489.35,0.00023561,4]
[365282913,1749576643636,-460.0,0.00023561,4]
[365282915,1749576643645,-1143.94,0.00023561,4]
[365282917,1749576643654,-460.0,0.00023561,4]
[365282919,1749576643664,-460.0,0.00023561,4]
[365282921,1749576643674,-779.83,0.00023561,4]
[365282923,1749576643684,-460.0,0.00023561,4]
[365282925,1749576643693,-930.03,0.00023561,4]
[365282927,1749576643703,-1052.79,0.00023561,4]
[365282929,1749576643713,-820.68,0.00023561,4]
[365282931,1749576643723,-692.45,0.00023561,4]
[365282933,1749576643732,-807.39,0.00023561,4]
[365282935,1749576643742,-1087.75,0.00023561,4]
[365282937,1749576643752,-561.89,0.00023561,4]
[365282939,1749576643762,-460.0,0.00023561,4]
[365282941,1749576643771,-1184.26,0.000236,7]
[365282943,1749576643781,-11699.999801,0.00023613,7]
[365282945,1749576643791,-205.8748853,0.00023614,9]
[365282947,1749576643801,-876.58125349,0.00023656,2]
[365282949,1749576643811,-205.8748853,0.00023721,9]
[365282952,1749576643821,-587.0,0.00023764,2]
[365282954,1749576643830,-500.0,0.00023773,2]
[365282956,1749576643840,-1812.17805154,0.0002378,2]
[365282958,1749576643849,-500.0,0.00023798,2]
[365282959,1749576643859,-1663.69666965,0.00023798,2]
[365282961,1749576643869,-1663.69666965,0.00023798,2]
[365282963,1749576643879,-1663.69666965,0.00023798,2]
[365282966,1749576643890,-1663.69666965,0.00023798,2]
[365282968,1749576643899,-500.0,0.00023798,2]
[365282970,1749576643909,-1663.69666965,0.00023798,2]
[365282972,1749576643918,-1663.69666965,0.00023798,2]
[365282974,1749576643928,-1663.69666965,0.00023798,2]
[365282976,1749576643938,-1663.69666965,0.00023798,2]
[365282978,1749576643947,-1663.69666965,0.00023798,2]
[365282980,1749576643957,-1663.69666965,0.00023798,2]
[365282982,1749576643970,-1663.69666965,0.00023798,2]
[365282984,1749576643982,-500.0,0.00023798,2]
[365282986,1749576643993,-158.39663593,0.00023798,2]
[365282988,1749576644005,-1663.69666965,0.00023798,2]
[365282990,1749576644016,-1663.69666965,0.00023798,2]
[365282992,1749576644028,-1663.69666965,0.00023798,2]
[365282993,1749576644040,-1663.69666965,0.00023798,2]
[365282995,1749576644054,-1663.69666965,0.00023798,2]
[365282997,1749576644078,-1663.69666965,0.00023798,2]
[365282999,1749576644091,-1663.69666965,0.00023798,2]
[365283002,1749576644104,-1663.69666965,0.00023798,2]
[365283003,1749576644115,-1663.69666965,0.00023798,2]
[365283005,1749576644127,-36660.04694066,0.00023799,2]
[365283006,1749576644138,-1633.38,0.000238,2]
[365283007,1749576644148,-19118.80793336,0.000238,3]
[365283008,1749576644159,-70763.27,0.000238,7]
[365283009,1749576644170,-160.0,0.000238,3]
[365283010,1749576644181,-160.0,0.000238,3]
[365283011,1749576644192,-213.1263252,0.000238,3]
[365283012,1749576644202,-205.8748853,0.00023829,10]
[365283013,1749576644215,-4165.77,0.00023835,4]
[365283014,1749576644227,-460.0,0.00023835,4]
[365283015,1749576644237,-460.0,0.00023835,4]
[365283016,1749576644248,-460.0,0.00023835,4]
[365283017,1749576644258,-612.67,0.00023835,4]
[365283018,1749576644268,-599.23624425,0.00023835,4]
[365283019,1749576644279,-553.74,0.00023835,4]
[365283020,1749576644290,-813.24,0.00023835,4]
[365283021,1749576644300,-537.48,0.00023835,4]
[365283022,1749576644310,-489.35,0.00023835,4]
[365283023,1749576644321,-460.0,0.00023835,4]
[365283024,1749576644330,-1143.94,0.00023835,4]
[365283025,1749576644341,-460.0,0.00023835,4]
[365283026,1749576644350,-460.0,0.00023835,4]
[365283027,1749576644361,-779.83,0.00023835,4]
[365283028,1749576644371,-460.0,0.00023835,4]
[365283029,1749576644382,-930.03,0.00023835,4]
[365283031,1749576644391,-1052.79,0.00023835,4]
[365283033,1749576644401,-820.68,0.00023835,4]
[365283034,1749576644410,-692.45,0.00023835,4]
[365283036,1749576644420,-807.39,0.00023835,4]
[365283038,1749576644429,-1087.75,0.00023835,4]
[365283040,1749576644438,-561.89,0.00023835,4]
[365283042,1749576644448,-460.0,0.00023835,4]
[365283044,1749576644458,-805.04168361,0.00023886,2]
[365283046,1749576644471,-342.24493609,0.000239,2]
[365283047,1749576644480,-205.8748853,0.00023936,10]
[365283048,1749576644490,-160.0,0.00024,7]
[365283049,1749576644500,-5000.0,0.00024013,2]
[365283050,1749576644511,-205.8748853,0.00024043,10]
[365283051,1749576644521,-1207.0,0.00024051,2]
[365283052,1749576644530,-597.83,0.000241,7]
[365283053,1749576644540,-4165.77,0.00024109,4]
[365283054,1749576644551,-460.0,0.00024109,4]
[365283055,1749576644561,-448.87559801,0.00024109,4]
[365283056,1749576644571,-460.0,0.00024109,4]
[365283057,1749576644580,-612.67,0.00024109,4]
[365283058,1749576644589,-553.74,0.00024109,4]
[365283059,1749576644598,-813.24,0.00024109,4]
[365283060,1749576644608,-537.48,0.00024109,4]
[365283061,1749576644618,-489.35,0.00024109,4]
[365283062,1749576644627,-460.0,0.00024109,4]
[365283063,1749576644638,-1143.94,0.00024109,4]
[365283064,1749576644647,-460.0,0.00024109,4]
[365283065,1749576644657,-339.42093695,0.00024109,4]
[365283066,1749576644667,-779.83,0.00024109,4]
[365283067,1749576644676,-460.0,0.00024109,4]
[365283068,1749576644686,-930.03,0.00024109,4]
[365283069,1749576644695,-1052.79,0.00024109,4]
[365283070,1749576644705,-820.68,0.00024109,4]
[365283071,1749576644715,-692.45,0.00024109,4]
[365283072,1749576644726,-807.39,0.00024109,4]
[365283073,1749576644736,-1087.75,0.00024109,4]
[365283074,1749576644746,-561.89,0.00024109,4]
[365283075,1749576644756,-460.0,0.00024109,4]
[365283076,1749576644765,-205.8748853,0.0002415,10]
[365283077,1749576644775,-876.58125349,0.00024208,2]
[365283078,1749576644784,-205.8748853,0.00024257,10]
[365283079,1749576644794,-1593.45162398,0.00024354,3]
[365283080,1749576644803,-1031.068633,0.0002436,3]
[365283081,1749576644812,-443.72833664,0.00024364,2]
[365283082,1749576644822,-205.8748853,0.00024364,11]
[365283083,1749576644831,-4165.77,0.00024383,4]
[365283084,1749576644842,-460.0,0.00024383,4]
[365283085,1749576644851,-460.0,0.00024383,4]
[365283086,1749576644860,-612.67,0.00024383,4]
[365283087,1749576644871,-553.74,0.00024383,4]
[365283088,1749576644881,-813.24,0.00024383,4]
[365283089,1749576644890,-537.48,0.00024383,4]
[365283090,1749576644900,-489.35,0.00024383,4]
[365283091,1749576644910,-460.0,0.00024383,4]
[365283092,1749576644919,-1143.94,0.00024383,4]
[365283093,1749576644929,-460.0,0.00024383,4]
[365283094,1749576644938,-779.83,0.00024383,4]
[365283095,1749576644947,-460.0,0.00024383,4]